[Event "Chess Festival Groningen 2023 | A"]
[Site "Groningen, Netherlands"]
[Date "2023.12.28"]
[Round "7.5"]
[White "Kanov, Nikola"]
[Black "Stremavicius, Titas"]
[Result "1-0"]
[TimeControl "90min/40moves + 30min + 30sec/move"]
[WhiteElo "2371"]
[BlackElo "2550"]

1. e4 {[%clk 01:30:58]} {[%emt 00:00:02]} c5 {[%clk 01:30:53]} {[%emt
00:00:07]} 2. Nf3 {[%clk 01:31:22]} {[%emt 00:00:07]} Nc6 {[%clk 01:31:18]}
{[%emt 00:00:05]} 3. d4 {[%clk 01:31:43]} {[%emt 00:00:09]} cxd4 {[%clk
01:31:44]} {[%emt 00:00:04]} 4. Nxd4 {[%clk 01:32:04]} {[%emt 00:00:10]} Nf6
{[%clk 01:32:07]} {[%emt 00:00:06]} 5. Nc3 {[%clk 01:32:24]} {[%emt 00:00:10]}
d6 {[%clk 01:32:30]} {[%emt 00:00:06]} 6. Bg5 {[%clk 01:32:35]} {[%emt
00:00:19]} Bd7 {[%clk 01:32:53]} {[%emt 00:00:07]} 7. Qd2 {[%clk 01:32:46]}
{[%emt 00:00:20]} Rc8 {[%clk 01:33:15]} {[%emt 00:00:08]} 8. O-O-O {[%clk
01:32:24]} {[%emt 00:00:51]} Nxd4 {[%clk 01:33:37]} {[%emt 00:00:08]} 9. Qxd4
{[%clk 01:32:46]} {[%emt 00:00:09]} Qa5 {[%clk 01:34:01]} {[%emt 00:00:06]} 10.
f4 {[%clk 01:27:13]} {[%emt 00:06:03]} h6 {[%clk 01:34:23]} {[%emt 00:00:07]}
11. Bxf6 {[%clk 01:21:06]} {[%emt 00:06:38]} gxf6 {[%clk 01:34:48]} {[%emt
00:00:04]} 12. Kb1 {[%clk 01:18:09]} {[%emt 00:03:28]} Qc5 {[%clk 01:35:02]}
{[%emt 00:00:16]} 13. Qd3 {[%clk 01:16:17]} {[%emt 00:02:23]} h5 {[%clk
01:35:17]} {[%emt 00:00:14]} 14. Be2 {[%clk 01:14:38]} {[%emt 00:02:09]} f5
{[%clk 01:34:13]} {[%emt 00:01:33]} 15. e5 {[%emt 00:03:05]} e6 {[%clk
01:32:52]} {[%emt 00:01:49]} 16. Nb5 {[%clk 00:58:17]} {[%emt 00:14:19]} Bc6
{[%clk 00:59:01]} {[%emt 00:34:20]} 17. Nxd6+ {[%clk 00:54:32]} {[%emt
00:04:16]} Bxd6 {[%clk 00:59:20]} {[%emt 00:00:11]} 18. exd6 {[%clk 00:54:51]}
{[%emt 00:00:11]} Kd7 {[%clk 00:58:59]} {[%emt 00:00:51]} 19. Qg3 {[%clk
00:42:29]} {[%emt 00:12:52]} Be4 {[%clk 00:49:13]} {[%emt 00:10:15]} 20. Ka1
{[%clk 00:37:16]} {[%emt 00:05:44]} Bxc2 {[%clk 00:32:05]} {[%emt 00:17:38]} 21.
Rc1 {[%clk 00:36:18]} {[%emt 00:01:29]} Qd4 {[%emt 00:13:14]} 22. Qg5 {[%clk
00:31:52]} Kxd6 {[%clk 00:23:08]} {[%emt 00:01:37]} 23. Qh4 {[%clk 00:12:33]}
{[%emt 00:19:50]} a5 {[%clk 00:20:13]} {[%emt 00:03:25]} 24. Qh3 {[%clk
00:06:25]} {[%emt 00:06:38]} Ba4 {[%clk 00:12:34]} {[%emt 00:08:09]} 25. Qa3+
{[%clk 00:05:41]} {[%emt 00:01:14]} Kd7 {[%clk 00:12:17]} {[%emt 00:00:47]} 26.
Bb5+ {[%clk 00:05:39]} {[%emt 00:00:33]} Bxb5 {[%clk 00:06:55]} {[%emt
00:05:51]} 27. Rcd1 {[%clk 00:06:04]} {[%emt 00:00:05]} Rc1+ {[%clk 00:07:16]}
{[%emt 00:00:08]} 28. Rxc1 {[%clk 00:06:31]} {[%emt 00:00:04]} Ba4 {[%clk
00:07:39]} {[%emt 00:00:07]} 29. Qf3 {[%clk 00:05:49]} {[%emt 00:01:12]} Qb4
{[%clk 00:02:39]} {[%emt 00:05:29]} 30. a3 {[%clk 00:03:38]} {[%emt 00:02:43]}
1-0

[Event "Chess Festival Groningen 2023 | A"]
[Site "Groningen, Netherlands"]
[Date "2023.12.28"]
[Round "7.6"]
[White "Gomes, Mary Ann"]
[Black "Kobo, Ori"]
[Result "1/2-1/2"]
[TimeControl "90min/40moves + 30min + 30sec/move"]
[WhiteElo "2332"]
[BlackElo "2541"]

1. Nf3 {[%clk 01:30:37]} {[%emt 00:00:22]} Nf6 {[%clk 01:30:45]} {[%emt
00:00:16]} 2. c4 {[%clk 01:30:53]} {[%emt 00:00:14]} g6 {[%clk 01:31:03]}
{[%emt 00:00:11]} 3. b3 {[%clk 01:31:18]} {[%emt 00:00:06]} Bg7 {[%clk
01:31:26]} {[%emt 00:00:06]} 4. Bb2 {[%clk 01:31:42]} {[%emt 00:00:07]} O-O
{[%clk 01:31:12]} {[%emt 00:00:43]} 5. g3 {[%clk 01:32:08]} {[%emt 00:00:04]}
d6 {[%clk 01:31:20]} {[%emt 00:00:21]} 6. Bg2 {[%clk 01:32:20]} {[%emt
00:00:19]} e5 {[%clk 01:31:03]} {[%emt 00:00:47]} 7. d3 {[%clk 01:32:46]}
{[%emt 00:00:05]} a5 {[%clk 01:31:07]} {[%emt 00:00:25]} 8. O-O {[%clk
01:31:20]} {[%emt 00:01:56]} Na6 {[%clk 01:31:21]} {[%emt 00:00:15]} 9. a3
{[%clk 01:28:37]} {[%emt 00:03:14]} Bd7 {[%clk 01:30:58]} {[%emt 00:00:52]} 10.
Nc3 {[%clk 01:28:48]} {[%emt 00:00:19]} c6 {[%clk 01:30:14]} {[%emt 00:01:13]}
11. Nd2 {[%clk 01:23:39]} {[%emt 00:05:39]} Rb8 {[%clk 01:24:01]} {[%emt
00:06:43]} 12. Rc1 {[%clk 01:16:42]} {[%emt 00:07:28]} Qe7 {[%clk 01:17:21]}
{[%emt 00:07:09]} 13. Rc2 {[%clk 01:10:29]} {[%emt 00:06:43]} h5 {[%clk
01:13:40]} {[%emt 00:04:10]} 14. h4 {[%clk 01:08:11]} {[%emt 00:02:48]} Nh7
{[%clk 01:05:09]} {[%emt 00:09:01]} 15. Nf3 {[%clk 01:05:56]} {[%emt 00:02:46]}
f5 {[%clk 00:53:20]} {[%emt 00:12:18]} 16. Bc1 {[%clk 01:05:45]} {[%emt
00:00:42]} Nc5 {[%clk 00:53:28]} {[%emt 00:00:21]} 17. b4 {[%clk 01:02:53]}
{[%emt 00:03:22]} axb4 {[%clk 00:53:46]} {[%emt 00:00:12]} 18. axb4 {[%clk
01:03:18]} {[%emt 00:00:05]} Nb3 {[%clk 00:46:05]} {[%emt 00:08:10]} 19. e3
{[%clk 01:02:53]} {[%emt 00:00:55]} Nxc1 {[%clk 00:44:27]} {[%emt 00:02:09]} 20.
Qxc1 {[%clk 01:03:11]} {[%emt 00:00:11]} Bf6 {[%clk 00:38:39]} {[%emt
00:06:17]} 21. Nh2 {[%clk 01:00:45]} {[%emt 00:02:56]} g5 {[%clk 00:36:28]}
{[%emt 00:02:42]} 22. hxg5 {[%clk 01:00:49]} {[%emt 00:00:26]} Bxg5 {[%emt
00:00:57]} 23. f4 {[%clk 01:00:37]} Bh6 {[%clk 00:33:39]} {[%emt 00:03:33]} 24.
Nf3 {[%clk 00:59:21]} {[%emt 00:01:47]} Kh8 {[%clk 00:32:06]} {[%emt 00:02:03]}
25. c5 {[%clk 00:59:04]} {[%emt 00:00:47]} exf4 {[%clk 00:30:59]} {[%emt
00:01:37]} 26. exf4 {[%clk 00:55:27]} {[%emt 00:04:07]} dxc5 {[%clk 00:23:13]}
{[%emt 00:08:17]} 27. Re2 {[%clk 00:48:54]} {[%emt 00:07:03]} Qg7 {[%clk
00:22:43]} {[%emt 00:00:58]} 28. bxc5 {[%clk 00:48:29]} {[%emt 00:00:57]} Qxg3
{[%clk 00:22:31]} {[%emt 00:00:41]} 29. Ne5 {[%clk 00:47:26]} {[%emt 00:01:34]}
Be8 {[%clk 00:19:37]} {[%emt 00:03:24]} 30. Re3 {[%emt 00:05:09]} Qg7 {[%clk
00:19:11]} 31. Ne2 {[%clk 00:43:55]} {[%emt 00:00:18]} Rd8 {[%clk 00:11:50]}
{[%emt 00:07:51]} 32. Qb2 {[%clk 00:38:21]} {[%emt 00:06:05]} Nf6 {[%clk
00:07:02]} {[%emt 00:05:18]} 33. Nd4 {[%clk 00:36:53]} {[%emt 00:01:58]} Rxd4
{[%clk 00:07:25]} {[%emt 00:00:08]} 34. Qxd4 {[%clk 00:37:17]} {[%emt
00:00:06]} Rg8 {[%clk 00:06:52]} {[%emt 00:01:01]} 35. Re2 {[%clk 00:36:44]}
{[%emt 00:01:05]} h4 {[%clk 00:06:41]} {[%emt 00:00:41]} 36. Kh1 {[%clk
00:36:14]} {[%emt 00:00:59]} Nh5 {[%clk 00:05:38]} {[%emt 00:01:33]} 37. Rf3
{[%clk 00:35:06]} {[%emt 00:01:39]} Ng3+ {[%clk 00:05:38]} {[%emt 00:00:31]} 38.
Rxg3 {[%clk 00:35:25]} {[%emt 00:00:11]} hxg3 {[%clk 00:05:56]} {[%emt
00:00:11]} 39. Bh3 {[%clk 00:34:49]} {[%emt 00:01:06]} Rf8 {[%clk 00:03:11]}
{[%emt 00:03:14]} 40. Kg2 {[%clk 00:32:12]} {[%emt 00:03:07]} Kh7 {[%clk
00:00:43]} {[%emt 00:02:58]} 41. Re3 {[%clk 00:30:00]} {[%emt 00:02:42]} Qg8
{[%clk 00:21:25]} {[%emt 00:09:48]} 42. Nc4 {[%clk 00:41:19]} {[%emt 00:19:10]}
Bg6 {[%clk 00:08:50]} {[%emt 00:13:05]} 43. Re7+ {[%clk 00:32:40]} {[%emt
00:09:09]} Rf7 {[%clk 00:07:55]} {[%emt 00:01:25]} 44. Qf6 {[%clk 00:19:47]}
{[%emt 00:13:24]} Bxf4 {[%clk 00:02:21]} {[%emt 00:06:04]} 45. Bxf5 {[%clk
00:15:09]} {[%emt 00:05:08]} Rxe7 {[%clk 00:02:48]} {[%emt 00:00:03]} 46. Qxe7+
{[%clk 00:13:09]} {[%emt 00:02:30]} Qg7 {[%clk 00:02:53]} {[%emt 00:00:24]} 47.
Qh4+ {[%clk 00:12:09]} {[%emt 00:01:30]} Bh6 {[%clk 00:02:52]} {[%emt
00:00:31]} 48. Bxg6+ {[%clk 00:11:54]} {[%emt 00:00:45]} Qxg6 {[%clk 00:03:11]}
{[%emt 00:00:11]} 49. Qxg3 {[%clk 00:12:17]} {[%emt 00:00:07]} Qe6 {[%clk
00:00:52]} {[%emt 00:02:49]} 50. Qe5 {[%clk 00:08:17]} {[%emt 00:04:30]} Qg4+
{[%clk 00:00:58]} {[%emt 00:00:24]} 51. Kf2 {[%clk 00:05:16]} {[%emt 00:03:31]}
Qh4+ {[%clk 00:01:25]} {[%emt 00:00:03]} 52. Kg2 {[%clk 00:05:03]} {[%emt
00:00:43]} Qg4+ {[%clk 00:01:19]} {[%emt 00:00:36]} 53. Kf2 {[%clk 00:05:03]}
{[%emt 00:00:31]} Bg7 {[%clk 00:00:35]} {[%emt 00:01:15]} 54. Qe4+ {[%clk
00:05:06]} {[%emt 00:00:26]} Qxe4 {[%clk 00:01:00]} {[%emt 00:00:05]} 55. dxe4
{[%clk 00:05:32]} {[%emt 00:00:05]} Bd4+ {[%clk 00:01:26]} {[%emt 00:00:03]} 56.
Ke2 {[%clk 00:05:46]} {[%emt 00:00:16]} Bxc5 {[%clk 00:01:49]} {[%emt
00:00:07]} 57. Na5 {[%clk 00:06:12]} {[%emt 00:00:04]} Bb4 {[%clk 00:01:07]}
{[%emt 00:01:13]} 1/2-1/2

[Event "Chess Festival Groningen 2023 | A"]
[Site "Groningen, Netherlands"]
[Date "2023.12.28"]
[Round "7.7"]
[White "Palchuk, Andrii"]
[Black "Nevednichy, Vladislav"]
[Result "1/2-1/2"]
[TimeControl "90min/40moves + 30min + 30sec/move"]
[WhiteElo "2328"]
[BlackElo "2452"]

1. d4 {[%clk 01:30:57]} {[%emt 00:00:02]} Nf6 {[%clk 01:30:57]} {[%emt
00:00:04]} 2. Nf3 {[%clk 01:31:16]} {[%emt 00:00:11]} d5 {[%clk 01:30:05]}
{[%emt 00:01:23]} 3. c4 {[%clk 01:31:38]} {[%emt 00:00:08]} e6 {[%clk
01:30:32]} {[%emt 00:00:03]} 4. g3 {[%clk 01:32:00]} {[%emt 00:00:07]} Bb4+
{[%clk 01:30:56]} {[%emt 00:00:06]} 5. Bd2 {[%clk 01:32:23]} {[%emt 00:00:07]}
Be7 {[%clk 01:31:21]} {[%emt 00:00:05]} 6. Bg2 {[%clk 01:32:33]} {[%emt
00:00:20]} O-O {[%clk 01:31:47]} {[%emt 00:00:05]} 7. O-O {[%clk 01:32:52]}
{[%emt 00:00:10]} c6 {[%clk 01:32:13]} {[%emt 00:00:04]} 8. Qc2 {[%clk
01:31:06]} {[%emt 00:02:16]} b6 {[%clk 01:32:39]} {[%emt 00:00:05]} 9. Bf4
{[%clk 01:25:27]} {[%emt 00:06:08]} Bb7 {[%clk 01:31:51]} {[%emt 00:01:18]} 10.
Rc1 {[%clk 01:22:39]} {[%emt 00:03:18]} Nbd7 {[%clk 01:24:58]} {[%emt
00:07:23]} 11. cxd5 {[%clk 01:10:41]} {[%emt 00:12:27]} Nxd5 {[%clk 01:24:09]}
{[%emt 00:01:19]} 12. Nc3 {[%clk 01:09:58]} {[%emt 00:01:13]} Nxf4 {[%clk
01:16:30]} {[%emt 00:08:10]} 13. gxf4 {[%clk 01:07:16]} {[%emt 00:03:11]} Rc8
{[%clk 01:16:53]} {[%emt 00:00:08]} 14. e3 {[%clk 01:03:30]} {[%emt 00:04:16]}
g6 {[%clk 01:10:27]} {[%emt 00:06:56]} 15. Ne5 {[%clk 01:02:24]} {[%emt
00:01:35]} Nxe5 {[%clk 01:06:10]} {[%emt 00:04:48]} 16. dxe5 {[%clk 01:02:25]}
{[%emt 00:00:29]} Qc7 {[%clk 01:05:57]} {[%emt 00:00:43]} 17. Rd1 {[%clk
00:59:15]} {[%emt 00:03:40]} a6 {[%clk 01:03:04]} {[%emt 00:03:24]} 18. Rd2
{[%clk 00:45:05]} {[%emt 00:14:39]} Rfd8 {[%clk 01:02:39]} {[%emt 00:00:56]} 19.
Rad1 {[%clk 00:45:29]} {[%emt 00:00:06]} Rxd2 {[%clk 01:02:09]} {[%emt
00:01:01]} 20. Rxd2 {[%clk 00:45:49]} {[%emt 00:00:10]} Rd8 {[%clk 01:02:01]}
{[%emt 00:00:37]} 21. Ne4 {[%clk 00:41:52]} {[%emt 00:04:27]} Kg7 {[%clk
00:45:53]} {[%emt 00:16:38]} 22. Qd1 {[%clk 00:29:37]} {[%emt 00:12:45]} Rxd2
{[%clk 00:43:44]} {[%emt 00:02:40]} 23. Qxd2 {[%clk 00:30:01]} {[%emt
00:00:06]} c5 {[%clk 00:41:57]} {[%emt 00:02:17]} 24. Nd6 {[%clk 00:26:00]}
{[%emt 00:04:31]} Bc6 {[%clk 00:42:22]} {[%emt 00:00:06]} 25. Qd3 {[%clk
00:26:10]} {[%emt 00:00:19]} Kf8 {[%clk 00:39:25]} {[%emt 00:03:27]} 26. Qxa6
{[%clk 00:22:29]} {[%emt 00:04:11]} Bxg2 {[%clk 00:37:53]} {[%emt 00:02:02]} 27.
Kxg2 {[%clk 00:22:51]} {[%emt 00:00:07]} Bxd6 {[%clk 00:38:20]} {[%emt
00:00:04]} 28. exd6 {[%clk 00:23:14]} {[%emt 00:00:07]} Qxd6 {[%clk 00:38:47]}
{[%emt 00:00:02]} 29. b3 {[%clk 00:20:21]} {[%emt 00:03:23]} h5 {[%clk
00:37:55]} {[%emt 00:01:22]} 30. h3 {[%clk 00:15:53]} {[%emt 00:04:58]} Kg7
{[%clk 00:37:22]} {[%emt 00:01:04]} 31. Kg1 {[%clk 00:13:53]} {[%emt 00:02:30]}
Kf6 {[%clk 00:37:01]} {[%emt 00:00:50]} 32. Kg2 {[%clk 00:12:23]} {[%emt
00:02:00]} g5 {[%clk 00:33:24]} {[%emt 00:04:07]} 33. fxg5+ {[%clk 00:12:44]}
{[%emt 00:00:10]} Kxg5 {[%clk 00:33:49]} {[%emt 00:00:05]} 34. Qe2 {[%clk
00:10:24]} {[%emt 00:02:50]} f5 {[%clk 00:29:37]} {[%emt 00:04:41]} 35. e4
{[%clk 00:04:27]} {[%emt 00:06:27]} fxe4 {[%clk 00:26:13]} {[%emt 00:03:55]} 36.
Qxe4 {[%clk 00:04:31]} {[%emt 00:00:26]} Qd5 {[%clk 00:26:35]} {[%emt
00:00:07]} 37. h4+ {[%clk 00:03:18]} {[%emt 00:01:44]} Kf6 {[%clk 00:26:57]}
{[%emt 00:00:07]} 38. Kf3 {[%clk 00:03:42]} {[%emt 00:00:07]} b5 {[%clk
00:25:08]} {[%emt 00:02:19]} 39. Ke3 {[%clk 00:03:07]} {[%emt 00:01:06]} b4
{[%clk 00:25:19]} {[%emt 00:00:19]} 40. Qf4+ {[%clk 00:02:58]} {[%emt
00:00:38]} Kg6 {[%clk 00:24:58]} {[%emt 00:00:50]} 41. Qg3+ {[%clk 00:02:58]}
{[%emt 00:00:31]} Kf6 {[%clk 00:24:59]} {[%emt 00:00:28]} 42. Qf4+ {[%clk
00:03:24]} {[%emt 00:00:05]} Kg6 {[%clk 00:24:35]} {[%emt 00:00:54]} 43. Qg3+
{[%clk 00:03:49]} {[%emt 00:00:05]} Kf6 {[%clk 00:24:55]} {[%emt 00:00:10]} 44.
Qf4+ {[%clk 00:04:14]} {[%emt 00:00:05]} 1/2-1/2

[Event "Chess Festival Groningen 2023 | A"]
[Site "Groningen, Netherlands"]
[Date "2023.12.28"]
[Round "7.8"]
[White "Maatman, Nick"]
[Black "Lambrechts, Koen"]
[Result "1-0"]
[TimeControl "90min/40moves + 30min + 30sec/move"]
[WhiteElo "2371"]
[BlackElo "2290"]

1. d4 {[%clk 01:30:58]} {[%emt 00:00:01]} Nf6 {[%clk 01:30:45]} {[%emt
00:00:15]} 2. Nf3 {[%clk 01:31:04]} {[%emt 00:00:24]} e6 {[%clk 01:31:03]}
{[%emt 00:00:12]} 3. c4 {[%clk 01:29:22]} {[%emt 00:02:12]} b6 {[%clk
01:30:09]} {[%emt 00:01:25]} 4. g3 {[%clk 01:23:25]} {[%emt 00:06:27]} Bb7
{[%clk 01:29:25]} {[%emt 00:01:14]} 5. Bg2 {[%clk 01:23:50]} {[%emt 00:00:04]}
Be7 {[%clk 01:29:34]} {[%emt 00:00:21]} 6. O-O {[%clk 01:24:14]} {[%emt
00:00:06]} O-O {[%clk 01:29:54]} {[%emt 00:00:10]} 7. Re1 {[%clk 01:21:06]}
{[%emt 00:03:38]} Qc8 {[%clk 01:24:29]} {[%emt 00:05:55]} 8. Bg5 {[%clk
01:06:01]} {[%emt 00:15:35]} h6 {[%clk 01:21:50]} {[%emt 00:03:09]} 9. Bxf6
{[%clk 01:06:11]} {[%emt 00:00:20]} Bxf6 {[%clk 01:22:07]} {[%emt 00:00:13]} 10.
e4 {[%clk 01:03:56]} {[%emt 00:02:45]} d6 {[%clk 01:21:56]} {[%emt 00:00:41]}
11. Nc3 {[%clk 01:00:32]} {[%emt 00:03:53]} Rd8 {[%clk 01:14:56]} {[%emt
00:07:30]} 12. Qc2 {[%clk 00:58:21]} {[%emt 00:02:42]} Na6 {[%clk 00:57:31]}
{[%emt 00:17:55]} 13. Rad1 {[%clk 00:57:29]} {[%emt 00:01:22]} Be7 {[%clk
00:55:14]} {[%emt 00:02:48]} 14. a3 {[%clk 00:56:00]} {[%emt 00:01:59]} c5
{[%clk 00:50:08]} {[%emt 00:05:35]} 15. d5 {[%clk 00:56:16]} {[%emt 00:00:14]}
e5 {[%clk 00:49:46]} {[%emt 00:00:52]} 16. Kh1 {[%clk 00:48:34]} {[%emt
00:08:12]} Nc7 {[%clk 00:48:14]} {[%emt 00:02:02]} 17. Ng1 {[%clk 00:48:33]}
{[%emt 00:00:31]} Qd7 {[%clk 00:48:38]} {[%emt 00:00:06]} 18. Bh3 {[%clk
00:42:20]} {[%emt 00:06:42]} Qe8 {[%clk 00:49:02]} {[%emt 00:00:07]} 19. f4
{[%clk 00:42:25]} {[%emt 00:00:24]} Bf6 {[%clk 00:44:04]} {[%emt 00:05:29]} 20.
Nf3 {[%clk 00:41:34]} {[%emt 00:01:20]} Ba6 {[%clk 00:40:54]} {[%emt 00:03:40]}
21. Bf1 {[%clk 00:36:39]} {[%emt 00:05:25]} Rdb8 {[%clk 00:26:18]} {[%emt
00:15:06]} 22. b4 {[%clk 00:27:27]} {[%emt 00:09:41]} cxb4 {[%clk 00:25:29]}
{[%emt 00:01:19]} 23. axb4 {[%clk 00:26:59]} {[%emt 00:00:58]} Bc8 {[%clk
00:25:22]} {[%emt 00:00:37]} 24. f5 {[%clk 00:21:43]} {[%emt 00:05:46]} Bd7
{[%clk 00:24:50]} {[%emt 00:01:02]} 25. Qf2 {[%clk 00:18:48]} {[%emt 00:03:24]}
b5 {[%clk 00:22:21]} {[%emt 00:03:00]} 26. c5 {[%clk 00:18:11]} {[%emt
00:01:07]} dxc5 {[%clk 00:21:01]} {[%emt 00:01:51]} 27. d6 {[%clk 00:09:55]}
{[%emt 00:08:46]} Na6 {[%clk 00:20:56]} {[%emt 00:00:35]} 28. bxc5 {[%clk
00:10:21]} {[%emt 00:00:03]} Rc8 {[%clk 00:13:41]} {[%emt 00:07:45]} 29. Nd5
{[%clk 00:09:25]} {[%emt 00:01:27]} Rab8 {[%clk 00:13:35]} {[%emt 00:00:36]} 30.
Rc1 {[%clk 00:09:04]} {[%emt 00:00:50]} Bc6 {[%clk 00:10:51]} {[%emt 00:03:15]}
31. Red1 {[%clk 00:08:45]} {[%emt 00:00:49]} Qd7 {[%clk 00:10:20]} {[%emt
00:01:01]} 32. Qe3 {[%clk 00:08:17]} {[%emt 00:00:57]} Bxd5 {[%clk 00:09:52]}
{[%emt 00:00:59]} 33. Rxd5 {[%clk 00:05:28]} {[%emt 00:03:19]} Nb4 {[%clk
00:10:19]} {[%emt 00:00:03]} 34. Rxe5 {[%clk 00:04:31]} {[%emt 00:01:27]} Bxe5
{[%clk 00:05:47]} {[%emt 00:05:02]} 35. Nxe5 {[%clk 00:05:00]} {[%emt
00:00:01]} Qe8 {[%clk 00:05:42]} {[%emt 00:00:35]} 36. Qd4 {[%clk 00:04:34]}
{[%emt 00:00:55]} Nc6 {[%clk 00:05:27]} {[%emt 00:00:46]} 37. Nxc6 {[%clk
00:05:02]} {[%emt 00:00:02]} Rxc6 {[%clk 00:01:43]} {[%emt 00:04:14]} 38. e5
{[%clk 00:05:10]} {[%emt 00:00:22]} Ra6 {[%clk 00:01:14]} {[%emt 00:00:59]} 39.
Qd5 {[%clk 00:04:04]} {[%emt 00:01:35]} Ra3 {[%clk 00:00:54]} {[%emt 00:00:51]}
40. c6 {[%clk 00:03:01]} {[%emt 00:01:33]} Qc8 {[%clk 00:00:55]} {[%emt
00:00:28]} 41. c7 {[%emt 00:04:46]} 1-0